fUSD/lending_fUSD_20250923
["ID","MTS","AMOUNT","RATE_DAILY","PERIOD"]
[387239209,1758664299003,-628.73,0.00025479,3]
[387239210,1758664299013,-792.8,0.00025479,3]
[387239211,1758664299022,-400.0,0.00025479,3]
[387239212,1758664299032,-718.2,0.00025479,3]
[387239213,1758664299041,-771.65,0.00025479,3]
[387239214,1758664299051,-735.99,0.00025479,3]
[387239215,1758664299060,-400.0,0.00025479,3]
[387239216,1758664299070,-724.09,0.00025479,3]
[387239217,1758664299079,-400.0,0.00025479,3]
[387239218,1758664299089,-400.0,0.00025479,3]
[387239219,1758664299098,-735.82,0.00025479,3]
[387239220,1758664299108,-400.0,0.00025479,3]
[387239221,1758664299118,-400.0,0.00025479,3]
[387239222,1758664299127,-400.0,0.00025479,3]
[387239223,1758664299136,-724.51,0.00025479,3]
[387239224,1758664299146,-590.38,0.00025479,3]
[387239225,1758664299155,-400.0,0.00025479,3]
[387239226,1758664299165,-443.29,0.00025479,3]
[387239227,1758664299174,-424.82,0.00025479,3]
[387239228,1758664299183,-704.47,0.00025479,3]
[387239229,1758664299192,-400.0,0.00025479,3]
[387239230,1758664299201,-400.0,0.00025479,3]
[387239231,1758664299211,-597.65,0.00025479,3]
[387239232,1758664299221,-644.02,0.00025479,3]
[387239233,1758664299231,-490.6,0.00025479,3]
[387239234,1758664299240,-544.45,0.00025479,3]
[387239235,1758664299250,-400.0,0.00025479,3]
[387239236,1758664299259,-400.0,0.00025479,3]
[387239237,1758664299268,-400.0,0.00025479,3]
[387239238,1758664299278,-189.42,0.00025479,3]
[387239239,1758664299287,-1124.92,0.00025479,3]
[387239240,1758664299295,-400.98,0.00025479,3]
[387239241,1758664299304,-1607.1,0.00025479,3]
[387239242,1758664299314,-643.25,0.00025479,3]
[387239243,1758664299324,-400.0,0.00025479,3]
[387239244,1758664299333,-400.0,0.00025479,3]
[387239245,1758664299342,-400.0,0.00025479,3]
[387239246,1758664299352,-702.26,0.00025479,3]
[387239247,1758664299363,-623.69,0.00025479,3]
[387239248,1758664299372,-400.0,0.00025479,3]
[387239249,1758664299386,-400.0,0.00025479,3]
[387239250,1758664299396,-1080.61,0.00025479,3]
[387239251,1758664299407,-422.24,0.00025479,3]
[387239252,1758664299417,-417.7,0.00025479,3]
[387239253,1758664299427,-909.48,0.00025479,3]
[387239254,1758664299436,-400.0,0.00025479,3]
[387239255,1758664299446,-515.95,0.00025479,3]
[387239256,1758664299457,-400.0,0.00025479,3]
[387239257,1758664299466,-419.15,0.00025479,3]
[387239258,1758664299475,-400.0,0.00025479,3]
[387239259,1758664299484,-1535.1,0.00025479,3]
[387239260,1758664299493,-421.32,0.00025479,3]
[387239261,1758664299502,-610.62,0.00025479,3]
[387239262,1758664299511,-400.0,0.00025479,3]
[387239263,1758664299520,-400.0,0.00025479,3]
[387239264,1758664299530,-400.0,0.00025479,3]
[387239265,1758664299539,-400.0,0.00025479,3]
[387239266,1758664299548,-400.0,0.00025479,3]
[387239267,1758664299558,-788.82,0.00025479,3]
[387239268,1758664299567,-501.25,0.00025479,3]
[387239269,1758664299576,-400.0,0.00025479,3]
[387239270,1758664299586,-400.0,0.00025479,3]
[387239271,1758664299595,-400.0,0.00025479,3]
[387239272,1758664299604,-400.0,0.00025479,3]
[387239273,1758664299614,-400.0,0.00025479,3]
[387239274,1758664299623,-400.0,0.00025479,3]
[387239275,1758664299633,-467.58,0.00025479,3]
[387239276,1758664299643,-614.35,0.00025479,3]
[387239277,1758664299652,-387.17,0.00025479,3]
[387239278,1758664299661,-686.69,0.00025479,3]
[387239279,1758664299670,-400.0,0.00025479,3]
[387239280,1758664299680,-400.0,0.00025479,3]
[387239281,1758664299689,-400.0,0.00025479,3]
[387239282,1758664299698,-1284.73,0.00025479,3]
[387239283,1758664299708,-642.36,0.00025479,3]
[387239284,1758664299717,-560.54,0.00025479,3]
[387239285,1758664299726,-1073.37,0.00025479,3]
[387239286,1758664299735,-400.0,0.00025479,3]
[387239287,1758664299744,-753.1,0.00025479,3]
[387239288,1758664299754,-400.0,0.00025479,3]
[387239289,1758664299763,-545.97,0.00025479,3]
[387239290,1758664299772,-400.0,0.00025479,3]
[387239291,1758664299781,-400.0,0.00025479,3]
[387239292,1758664299790,-400.0,0.00025479,3]
[387239293,1758664299799,-580.05,0.00025479,3]
[387239294,1758664299809,-1196.06,0.00025479,3]
[387239295,1758664299819,-779.4,0.00025479,3]
[387239296,1758664299830,-1387.31,0.00025479,3]
[387239297,1758664299841,-394.98,0.00025479,3]
[387239298,1758664299851,-526.44,0.00025479,3]
[387239299,1758664299861,-400.0,0.00025479,3]
[387239300,1758664299870,-914.9,0.00025479,3]
[387239301,1758664299880,-400.0,0.00025479,3]
[387239302,1758664299889,-751.05,0.00025479,3]
[387239303,1758664299899,-10481.21,0.00025479,3]
[387239304,1758664299908,-397.74680009,0.00025479,3]
[387239305,1758664299917,-400.0,0.00025479,3]
[387239306,1758664299926,-400.0,0.00025479,3]
[387239307,1758664299935,-585.69,0.00025479,3]
[387239308,1758664299944,-1984.04,0.00025479,3]
[387239309,1758664299954,-400.0,0.00025479,3]
[387239310,1758664299963,-400.0,0.00025479,3]
[387239311,1758664299972,-1075.59,0.00025479,3]
[387239312,1758664299982,-1243.9,0.00025479,3]
[387239313,1758664299991,-2675.56,0.00025479,3]
[387239314,1758664300001,-1687.56,0.00025479,3]
[387239315,1758664300010,-603.56,0.00025479,3]
[387239316,1758664300020,-400.0,0.00025479,3]
[387239317,1758664300030,-400.0,0.00025479,3]
[387239318,1758664300041,-613.2,0.00025479,3]
[387239319,1758664300051,-400.0,0.00025479,3]
[387239320,1758664300061,-400.0,0.00025479,3]
[387239321,1758664300071,-1380.17,0.00025479,3]
[387239322,1758664300081,-637.31,0.00025479,3]
[387239323,1758664300090,-536.31,0.00025479,3]
[387239324,1758664300099,-400.0,0.00025479,3]
[387239325,1758664300109,-1960.16,0.00025479,3]
[387239326,1758664300119,-3596.07,0.00025479,3]
[387239327,1758664300129,-653.4,0.00025479,3]
[387239328,1758664300138,-400.0,0.00025479,3]
[387239329,1758664300148,-400.0,0.00025479,3]
[387239330,1758664300159,-1811.83,0.00025479,3]
[387239331,1758664300168,-400.0,0.00025479,3]
[387239332,1758664300177,-485.31,0.00025479,3]
[387239333,1758664300187,-609.4,0.00025479,3]
[387239334,1758664300196,-1777.36,0.00025479,3]
[387239335,1758664300206,-955.0,0.00025479,3]
[387239336,1758664300215,-1530.13,0.00025479,3]
[387239337,1758664300224,-400.0,0.00025479,3]
[387239338,1758664300233,-400.0,0.00025479,3]
[387239339,1758664300243,-1065.12,0.00025479,3]
[387239340,1758664300252,-400.0,0.00025479,3]
[387239341,1758664300261,-624.46,0.00025479,3]
[387239342,1758664300271,-668.62,0.00025479,3]
[387239343,1758664300280,-400.0,0.00025479,3]
[387239344,1758664300289,-766.88,0.00025479,3]
[387239345,1758664300298,-488.82,0.00025479,3]
[387239346,1758664300307,-400.0,0.00025479,3]
[387239347,1758664300317,-1866.98,0.00025479,3]
[387239348,1758664300326,-2251.93,0.00025479,3]
[387239349,1758664300335,-674.88,0.00025479,3]
[387239350,1758664300344,-400.0,0.00025479,3]
[387239351,1758664300354,-507.6,0.00025479,3]
[387239352,1758664300363,-1430.39,0.00025479,3]
[387239353,1758664300373,-400.0,0.00025479,3]
[387239354,1758664300386,-1005.24,0.00025479,3]
[387239355,1758664300396,-400.0,0.00025479,3]
[387239356,1758664300406,-706.55,0.00025479,3]
[387239357,1758664300419,-290.45794479,0.00025479,3]
[387239358,1758664300429,-400.0,0.00025479,3]
[387239359,1758664300439,-471.06,0.00025479,3]
[387239360,1758664300448,-440.49,0.00025479,3]
[387239361,1758664300458,-1632.87,0.00025479,3]
[387239362,1758664300468,-2172.06,0.00025479,3]
[387239363,1758664300478,-1577.53,0.00025479,3]
[387239364,1758664300487,-1762.21,0.00025479,3]
[387239365,1758664300497,-573.43,0.00025479,3]
[387239366,1758664300507,-400.0,0.00025479,3]
[387239367,1758664300516,-2598.87,0.00025479,3]
[387239368,1758664300526,-373.12540971,0.00025479,3]
[387239369,1758664300536,-2106.48,0.00025479,3]
[387239370,1758664300546,-400.0,0.00025479,3]
[387239371,1758664300555,-2137.16,0.00025479,3]
[387239372,1758664300565,-1633.99,0.00025479,3]
[387239373,1758664300575,-665.33,0.00025479,3]
[387239374,1758664300584,-400.0,0.00025479,3]
[387239375,1758664300595,-507.04,0.00025479,3]
[387239376,1758664300604,-400.0,0.00025479,3]
[387239377,1758664300614,-2272.09,0.00025479,3]
[387239378,1758664300624,-472.91951361,0.00025479,3]
[387239379,1758664300633,-652.14,0.00025479,3]
[387239380,1758664300643,-400.0,0.00025479,3]
[387239381,1758664300653,-441.78,0.00025479,3]
[387239382,1758664300663,-2095.57,0.00025479,3]
[387239383,1758664300672,-2047.84,0.00025479,3]
[387239384,1758664300682,-425.92,0.00025479,3]
[387239385,1758664300691,-400.0,0.00025479,3]
[387239386,1758664300700,-782.31,0.00025479,3]
[387239387,1758664300710,-400.0,0.00025479,3]
[387239388,1758664300720,-400.0,0.00025479,3]
[387239389,1758664300729,-1845.88,0.00025479,3]
[387239390,1758664300739,-1531.58,0.00025479,3]
[387239391,1758664300748,-1188.08,0.00025479,3]
[387239392,1758664300757,-400.0,0.00025479,3]
[387239393,1758664300767,-1490.46,0.00025479,3]
[387239394,1758664300776,-2033.65,0.00025479,3]
[387239395,1758664300785,-400.0,0.00025479,3]
[387239396,1758664300796,-400.0,0.00025479,3]
[387239397,1758664300805,-400.0,0.00025479,3]
[387239398,1758664300815,-2177.65,0.00025479,3]
[387239399,1758664300824,-2728.22,0.00025479,3]
[387239400,1758664300844,-400.0,0.00025479,3]
[387239401,1758664300862,-457.97,0.00025479,3]
[387239402,1758664300877,-457.97,0.00025479,3]
[387239403,1758664300892,-400.0,0.00025479,3]
[387239404,1758664300910,-1405.11,0.00025479,3]
[387239405,1758664300926,-680.61,0.00025479,3]
[387239406,1758664300939,-1312.62,0.00025479,3]
[387239407,1758664300955,-1113.08,0.00025479,3]
[387239408,1758664300971,-400.0,0.00025479,3]
[387239409,1758664300988,-1415.66,0.00025479,3]
[387239410,1758664301005,-1698.64,0.00025479,3]
[387239411,1758664301022,-1079.65,0.00025479,3]
[387239412,1758664301037,-769.12,0.00025479,3]
[387239413,1758664301054,-400.0,0.00025479,3]
[387239414,1758664301073,-916.94,0.00025479,3]
[387239415,1758664301090,-400.0,0.00025479,3]
[387239416,1758664301105,-2186.72,0.00025479,3]
[387239417,1758664301118,-546.81,0.00025479,3]
[387239418,1758664301136,-485.45,0.00025479,3]
[387239419,1758664301148,-952.65,0.00025479,3]
[387239420,1758664301162,-643.52,0.00025479,3]
[387239421,1758664301180,-400.0,0.00025479,3]
[387239422,1758664301192,-400.0,0.00025479,3]
[387239423,1758664301210,-410.64575409,0.00025479,3]
[387239424,1758664301226,-400.0,0.00025479,3]
[387239425,1758664301242,-1510.65,0.00025479,3]
[387239426,1758664301260,-1538.99,0.00025479,3]
[387239427,1758664301275,-400.0,0.00025479,3]
[387239428,1758664301291,-400.0,0.00025479,3]
[387239429,1758664301307,-400.0,0.00025479,3]
[387239430,1758664301322,-400.0,0.00025479,3]
[387239431,1758664301337,-767.66,0.00025479,3]
[387239432,1758664301351,-400.0,0.00025479,3]
[387239433,1758664301366,-1183.46,0.00025479,3]
[387239434,1758664301381,-1576.62,0.00025479,3]
[387239435,1758664301396,-1025.71,0.00025479,3]
[387239436,1758664301410,-1292.75,0.00025479,3]
[387239437,1758664301426,-427.35,0.00025479,3]
[387239438,1758664301443,-400.0,0.00025479,3]
[387239439,1758664301460,-589.78,0.00025479,3]
[387239440,1758664301477,-400.0,0.00025479,3]
[387239441,1758664301493,-400.0,0.00025479,3]
[387239442,1758664301508,-289.82122814,0.00025479,3]
[387239443,1758664301522,-400.0,0.00025479,3]
[387239444,1758664301537,-400.0,0.00025479,3]
[387239445,1758664301553,-400.0,0.00025479,3]
[387239446,1758664301566,-2168.52,0.00025479,3]
[387239447,1758664301580,-400.0,0.00025479,3]
[387239448,1758664301593,-400.0,0.00025479,3]
[387239449,1758664301607,-1248.87,0.00025479,3]
[387239450,1758664301620,-1438.1,0.00025479,3]
[387239451,1758664301634,-801.34,0.00025479,3]
[387239452,1758664301649,-400.0,0.00025479,3]
[387239453,1758664301662,-400.0,0.00025479,3]
[387239454,1758664301676,-400.0,0.00025479,3]
[387239455,1758664301689,-1989.17,0.00025479,3]
[387239456,1758664301703,-1355.06,0.00025479,3]
[387239457,1758664301717,-1742.92,0.00025479,3]
[387239458,1758664301731,-414.7955423,0.00025479,3]
[387239459,1758664301745,-1035.45,0.00025479,3]
[387239460,1758664301758,-400.0,0.00025479,3]
[387239461,1758664301771,-466.56,0.00025479,3]
[387239462,1758664301784,-1515.98,0.00025479,3]
[387239463,1758664301797,-1514.01,0.00025479,3]
[387239464,1758664301810,-1785.83,0.00025479,3]
[387239465,1758664301824,-635.55,0.00025479,3]
[387239466,1758664301837,-400.0,0.00025479,3]
[387239467,1758664301851,-400.0,0.00025479,3]
[387239468,1758664301865,-835.56,0.00025479,3]
[387239469,1758664301877,-1984.29,0.00025479,3]
[387239470,1758664301891,-411.78,0.00025479,3]
[387239471,1758664301904,-1716.89,0.00025479,3]
[387239472,1758664301917,-786.93,0.00025479,3]
[387239473,1758664301929,-645.64,0.00025479,3]
[387239474,1758664301942,-400.0,0.00025479,3]
[387239475,1758664301954,-400.0,0.00025479,3]
[387239476,1758664301967,-2059.55,0.00025479,3]
[387239477,1758664301980,-2306.45,0.00025479,3]
[387239478,1758664301994,-400.0,0.00025479,3]
[387239479,1758664302007,-400.0,0.00025479,3]
[387239480,1758664302021,-1545.45,0.00025479,3]
[387239481,1758664302035,-448.87154779,0.00025479,3]
[387239482,1758664302049,-400.0,0.00025479,3]
[387239483,1758664302061,-2095.63,0.00025479,3]
[387239484,1758664302075,-400.0,0.00025479,3]
[387239485,1758664302087,-1430.02,0.00025479,3]
[387239486,1758664302102,-400.0,0.00025479,3]
[387239487,1758664302115,-400.0,0.00025479,3]
[387239488,1758664302129,-690.64,0.00025479,3]
[387239489,1758664302143,-400.0,0.00025479,3]
[387239490,1758664302156,-909.31,0.00025479,3]
[387239491,1758664302169,-400.0,0.00025479,3]
[387239492,1758664302182,-1827.73,0.00025479,3]
[387239493,1758664302197,-400.0,0.00025479,3]
[387239494,1758664302209,-400.0,0.00025479,3]
[387239495,1758664302222,-400.0,0.00025479,3]
[387239496,1758664302235,-2101.8,0.00025479,3]
[387239497,1758664302251,-400.0,0.00025479,3]
[387239498,1758664302265,-655.71,0.00025479,3]
[387239499,1758664302278,-966.9,0.00025479,3]
[387239500,1758664302291,-400.0,0.00025479,3]
[387239501,1758664302303,-400.0,0.00025479,3]
[387239502,1758664302315,-5585.99,0.00025479,3]
[387239503,1758664302329,-1470.41,0.00025479,3]
[387239504,1758664302342,-603.72,0.00025479,3]
[387239505,1758664302357,-400.0,0.00025479,3]
[387239506,1758664302371,-400.0,0.00025479,3]
[387239507,1758664302387,-1883.8,0.00025479,3]
[387239508,1758664302400,-1867.36,0.00025479,3]
[387239509,1758664302412,-1963.55,0.00025479,3]
[387239510,1758664302427,-400.0,0.00025479,3]
[387239511,1758664302439,-614.58,0.00025479,3]
[387239512,1758664302452,-400.0,0.00025479,3]
[387239513,1758664302465,-952.78,0.00025479,3]
[387239514,1758664302477,-400.0,0.00025479,3]
[387239515,1758664302490,-1560.6,0.00025479,3]
[387239516,1758664302503,-400.0,0.00025479,3]
[387239517,1758664302515,-400.0,0.00025479,3]
[387239518,1758664302528,-1953.23,0.00025479,3]
[387239519,1758664302541,-1674.22,0.00025479,3]
[387239520,1758664302553,-400.0,0.00025479,3]
[387239521,1758664302566,-378.19949885,0.00025479,3]
[387239522,1758664302579,-1508.32,0.00025479,3]
[387239523,1758664302592,-400.0,0.00025479,3]
[387239524,1758664302604,-492.65,0.00025479,3]
[387239525,1758664302618,-924.37,0.00025479,3]
[387239526,1758664302630,-400.0,0.00025479,3]
[387239527,1758664302643,-400.0,0.00025479,3]
[387239528,1758664302664,-400.0,0.00025479,3]
[387239529,1758664302677,-1865.08,0.00025479,3]
[387239530,1758664302689,-1262.69,0.00025479,3]
[387239531,1758664302701,-400.0,0.00025479,3]
[387239532,1758664302714,-1344.24,0.00025479,3]
[387239533,1758664302726,-1502.94,0.00025479,3]
[387239534,1758664302738,-1473.52,0.00025479,3]
[387239535,1758664302750,-400.0,0.00025479,3]
[387239536,1758664302763,-511.75,0.00025479,3]
[387239537,1758664302776,-400.0,0.00025479,3]
[387239538,1758664302788,-957.08,0.00025479,3]
[387239539,1758664302801,-528.66,0.00025479,3]
[387239540,1758664302814,-552.31,0.00025479,3]
[387239541,1758664302826,-400.0,0.00025479,3]
[387239542,1758664302840,-2161.43,0.00025479,3]
[387239543,1758664302855,-2128.27,0.00025479,3]
[387239544,1758664302870,-943.67,0.00025479,3]
[387239545,1758664302882,-698.14,0.00025479,3]
[387239546,1758664302896,-1021.78,0.00025479,3]
[387239547,1758664302911,-956.83,0.00025479,3]
[387239548,1758664302924,-400.0,0.00025479,3]
[387239549,1758664302937,-1587.02,0.00025479,3]
[387239550,1758664302950,-7304.35,0.00025479,3]
[387239551,1758664302963,-400.0,0.00025479,3]
[387239552,1758664302975,-428.71,0.00025479,3]
[387239553,1758664302989,-1854.69,0.00025479,3]
[387239554,1758664303002,-533.26,0.00025479,3]
[387239555,1758664303016,-400.0,0.00025479,3]
[387239556,1758664303031,-400.0,0.00025479,3]
[387239557,1758664303044,-675.91,0.00025479,3]
[387239558,1758664303058,-1334.3,0.00025479,3]
[387239559,1758664303072,-447.62,0.00025479,3]
[387239560,1758664303084,-803.81,0.00025479,3]
[387239561,1758664303097,-400.0,0.00025479,3]
[387239562,1758664303109,-2319.15,0.00025479,3]
[387239563,1758664303122,-400.0,0.00025479,3]
[387239564,1758664303135,-400.0,0.00025479,3]
[387239565,1758664303148,-1143.73,0.00025479,3]
[387239566,1758664303161,-1693.96,0.00025479,3]
[387239567,1758664303174,-400.0,0.00025479,3]
[387239568,1758664303188,-808.53,0.00025479,3]
[387239569,1758664303201,-178.0104599,0.00025479,3]
[387239570,1758664303213,-1798.02,0.00025479,3]
[387239571,1758664303226,-400.0,0.00025479,3]
[387239572,1758664303238,-400.0,0.00025479,3]
[387239573,1758664303251,-1265.14,0.00025479,3]
[387239574,1758664303264,-400.0,0.00025479,3]
[387239575,1758664303277,-1501.23,0.00025479,3]
[387239576,1758664303295,-493.9,0.00025479,3]
[387239577,1758664303309,-528.22,0.00025479,3]
[387239578,1758664303321,-810.26,0.00025479,3]
[387239579,1758664303333,-400.0,0.00025479,3]
[387239580,1758664303346,-480.24,0.00025479,3]
[387239581,1758664303359,-400.0,0.00025479,3]
[387239582,1758664303371,-1303.69,0.00025479,3]
[387239583,1758664303387,-400.0,0.00025479,3]
[387239584,1758664303399,-400.0,0.00025479,3]
[387239585,1758664303412,-1157.48,0.00025479,3]
[387239586,1758664303435,-400.0,0.00025479,3]
[387239587,1758664303449,-676.36,0.00025479,3]
[387239588,1758664303465,-923.87,0.00025479,3]
[387239589,1758664303477,-1229.06,0.00025479,3]
[387239590,1758664303490,-865.69,0.00025479,3]
[387239591,1758664303503,-645.83,0.00025479,3]
[387239592,1758664303516,-1798.6,0.00025479,3]
[387239593,1758664303528,-549.42,0.00025479,3]
[387239594,1758664303542,-400.0,0.00025479,3]
[387239595,1758664303555,-404.28,0.00025479,3]
[387239596,1758664303568,-1589.65,0.00025479,3]
[387239597,1758664303581,-559.17,0.00025479,3]
[387239598,1758664303593,-1587.3,0.00025479,3]
[387239599,1758664303606,-1163.2,0.00025479,3]
[387239600,1758664303620,-536.97,0.00025479,3]
[387239601,1758664303635,-400.0,0.00025479,3]
[387239602,1758664303649,-400.0,0.00025479,3]
[387239603,1758664303661,-400.0,0.00025479,2]
[387239604,1758664303674,-2080.14,0.00025479,3]
[387239605,1758664303687,-529.51,0.00025479,3]
[387239606,1758664303700,-931.36,0.00025479,3]
[387239607,1758664303712,-1619.96,0.00025479,3]
[387239608,1758664303724,-400.0,0.00025479,3]
[387239609,1758664303737,-13739.2,0.00025479,3]
[387239610,1758664303749,-400.0,0.00025479,3]
[387239611,1758664303761,-948.64,0.00025479,3]
[387239612,1758664303774,-400.0,0.00025479,3]
[387239613,1758664303787,-1551.51,0.00025479,3]
[387239614,1758664303800,-1871.37,0.00025479,3]
[387239615,1758664303813,-400.0,0.00025479,3]
[387239616,1758664303826,-618.32,0.00025479,3]
[387239617,1758664303839,-459.87540932,0.00025479,3]
[387239618,1758664303852,-1302.85,0.00025479,3]
[387239619,1758664303864,-400.0,0.00025479,3]
[387239620,1758664303877,-400.0,0.00025479,3]
[387239621,1758664303891,-458.91,0.00025479,3]
[387239622,1758664303903,-1080.98,0.00025479,3]
[387239623,1758664303916,-657.58,0.00025479,3]
[387239624,1758664303936,-400.0,0.00025479,3]
[387239625,1758664303953,-400.0,0.00025479,3]
[387239626,1758664303969,-1848.91,0.00025479,3]
[387239627,1758664303985,-1506.02,0.00025479,3]
[387239628,1758664304001,-400.0,0.00025479,3]
[387239629,1758664304016,-477.74,0.00025479,3]
[387239630,1758664304031,-514.97,0.00025479,3]
[387239631,1758664304045,-400.0,0.00025479,3]
[387239632,1758664304059,-400.0,0.00025479,3]
[387239633,1758664304074,-400.0,0.00025479,3]
[387239634,1758664304089,-400.0,0.00025479,3]
[387239635,1758664304104,-1395.95,0.00025479,3]
[387239636,1758664304118,-400.0,0.00025479,3]
[387239637,1758664304132,-400.0,0.00025479,3]
[387239638,1758664304146,-1575.42,0.00025479,3]
[387239639,1758664304162,-400.0,0.00025479,3]
[387239640,1758664304176,-1347.82,0.00025479,3]
[387239641,1758664304190,-400.0,0.00025479,3]
[387239642,1758664304204,-1495.51,0.00025479,3]
[387239643,1758664304218,-525.32,0.00025479,3]
[387239644,1758664304232,-1907.27,0.00025479,3]
[387239645,1758664304246,-417.97088125,0.00025479,3]
[387239646,1758664304259,-403.87008412,0.00025479,3]
[387239647,1758664304273,-400.0,0.00025479,3]
[387239648,1758664304287,-1023.51,0.00025479,3]
[387239649,1758664304300,-432.69,0.00025479,3]
[387239650,1758664304313,-400.0,0.00025479,3]
[387239651,1758664304326,-1903.53,0.00025479,3]
[387239652,1758664304339,-1351.02,0.00025479,3]
[387239653,1758664304352,-702.83,0.00025479,3]
[387239654,1758664304366,-400.0,0.00025479,3]
[387239655,1758664304380,-880.27,0.00025479,3]
[387239656,1758664304395,-548.79,0.00025479,3]
[387239657,1758664304407,-786.35,0.00025479,3]
[387239658,1758664304421,-400.0,0.00025479,3]
[387239659,1758664304931,-451.0,0.00025479,3]
[387239660,1758664304972,-400.0,0.00025479,3]
[387239661,1758664305003,-400.0,0.00025479,3]
[387239662,1758664305013,-2096.52,0.00025479,3]
[387239663,1758664305023,-1019.97,0.00025479,3]
[387239664,1758664305032,-261.28797084,0.00025479,3]
[387239665,1758664305041,-400.0,0.00025479,3]
[387239666,1758664305051,-400.0,0.00025479,3]
[387239667,1758664305060,-475.27,0.00025479,3]
[387239668,1758664305070,-1844.62,0.00025479,3]
[387239669,1758664305080,-696.03,0.00025479,3]
[387239670,1758664305090,-400.0,0.00025479,3]
[387239671,1758664305100,-419.83,0.00025479,3]
[387239672,1758664305110,-601.48,0.00025479,3]
[387239673,1758664305119,-529.1,0.00025479,3]
[387239674,1758664305128,-1931.45,0.00025479,3]
[387239675,1758664305139,-2252.15,0.00025479,3]
[387239676,1758664305148,-500.0,0.00025479,2]
[387239677,1758664305158,-400.0,0.00025479,3]
[387239678,1758664305167,-450.0,0.00025479,3]
[387239679,1758664305176,-400.0,0.00025479,3]
[387239680,1758664305185,-536.36,0.00025479,3]
[387239681,1758664305195,-516.75,0.00025479,3]
[387239682,1758664305204,-400.0,0.00025479,3]
[387239683,1758664305213,-400.0,0.00025479,3]
[387239684,1758664305222,-2098.36,0.00025479,3]
[387239685,1758664305232,-400.0,0.00025479,3]
[387239686,1758664305242,-3658.05,0.00025479,3]
[387239687,1758664305251,-620.93,0.00025479,3]
[387239688,1758664305260,-2161.44,0.00025479,3]
[387239689,1758664305269,-803.72,0.00025479,3]
[387239690,1758664305278,-400.0,0.00025479,3]
[387239691,1758664305288,-400.0,0.00025479,3]
[387239692,1758664305297,-1550.42,0.00025479,3]
[387239693,1758664305306,-1607.31,0.00025479,3]
[387239694,1758664305315,-1788.33,0.00025479,3]
[387239695,1758664305325,-998.12,0.00025479,3]
[387239696,1758664305334,-510.18,0.00025479,3]
[387239697,1758664305344,-1221.01,0.00025479,3]
[387239698,1758664305354,-1421.09,0.00025479,3]
[387239699,1758664305363,-1581.33,0.00025479,3]
[387239700,1758664305373,-1796.87,0.00025479,3]
[387239701,1758664305387,-400.0,0.00025479,3]
[387239702,1758664305396,-400.0,0.00025479,3]
[387239703,1758664305406,-515.25,0.00025479,3]
[387239704,1758664305415,-400.0,0.00025479,3]
[387239705,1758664305427,-1366.95,0.00025479,3]
[387239706,1758664305436,-400.0,0.00025479,3]
[387239707,1758664305445,-400.0,0.00025479,3]
[387239708,1758664305456,-1983.1,0.00025479,3]